fUSD/lending_fUSD_20240412
["ID","MTS","AMOUNT","RATE_DAILY","PERIOD"]
[322254795,1712915446297,-887.98,0.00030643,2]
[322254796,1712915446312,-1416.67,0.00030643,2]
[322254797,1712915446324,-500.0,0.00030643,2]
[322254798,1712915446335,-153.3423266,0.0003066,7]
[322254799,1712915446347,-415.74156277,0.00030665,2]
[322254800,1712915446359,-154.82296994,0.00030684,7]
[322254801,1712915446371,-200.814477,0.00030685,14]
[322254802,1712915446381,-163.21773918,0.00030696,7]
[322254803,1712915446393,-154.02523859,0.0003072,7]
[322254804,1712915446404,-176.72482462,0.00030733,7]
[322254805,1712915446416,-500.0,0.00030737,2]
[322254806,1712915446427,-500.0,0.00030737,2]
[322254807,1712915446439,-500.0,0.00030737,2]
[322254808,1712915446450,-167.32115961,0.00030756,7]
[322254809,1712915446463,-161.80937703,0.00030862,7]
[322254810,1712915446475,-154.02523859,0.00030865,7]
[322254811,1712915446487,-157.43248173,0.00030888,7]
[322254812,1712915446499,-500.0,0.00030917,2]
[322254813,1712915446511,-500.0,0.00030917,2]
[322254814,1712915446523,-500.0,0.00030917,2]
[322254815,1712915446534,-557.6,0.00030917,2]
[322254816,1712915446544,-718.07,0.00030917,2]
[322254817,1712915446555,-170.93726149,0.00030917,2]
[322254818,1712915446565,-530.24,0.00030917,2]
[322254819,1712915446575,-732.3,0.00030917,2]
[322254820,1712915446585,-500.0,0.00030917,2]
[322254821,1712915446595,-677.35,0.00030917,2]
[322254822,1712915446606,-500.0,0.00030917,2]
[322254823,1712915446618,-611.34,0.00030917,2]
[322254824,1712915446630,-500.0,0.00030917,2]
[322254825,1712915446641,-500.0,0.00030917,2]
[322254826,1712915446651,-2113.65,0.00030917,2]
[322254827,1712915446663,-564.32,0.00030917,2]
[322254828,1712915446674,-500.0,0.00030917,2]
[322254829,1712915446686,-500.0,0.00030917,2]
[322254830,1712915446696,-500.0,0.00030917,2]
[322254831,1712915446706,-500.0,0.00030917,2]
[322254832,1712915446716,-3469.98,0.00030917,2]
[322254833,1712915446725,-581.26,0.00030917,2]
[322254834,1712915446736,-635.14,0.00030917,2]
[322254835,1712915446746,-500.0,0.00030917,2]
[322254836,1712915446756,-1691.0,0.00030917,2]
[322254837,1712915446766,-858.19,0.00030917,2]
[322254838,1712915446777,-252.04927633,0.00030917,2]
[322254839,1712915446787,-500.0,0.00030917,2]
[322254840,1712915446798,-500.0,0.00030917,2]
[322254841,1712915446810,-500.0,0.00030917,2]
[322254842,1712915446824,-887.98,0.00030917,2]
[322254843,1712915446834,-1416.67,0.00030917,2]
[322254844,1712915446845,-500.0,0.00030917,2]
[322254845,1712915446855,-415.74156277,0.00030959,2]
[322254846,1712915446867,-154.02523859,0.00030961,7]
[322254847,1712915446878,-304.13109594,0.00030982,4]
[322254848,1712915446891,-2133.59421232,0.00030998,2]
[322254849,1712915446902,-150.0,0.00031,2]
[322254850,1712915446913,-500.0,0.00031011,2]
[322254851,1712915446924,-500.0,0.00031011,2]
[322254852,1712915446934,-500.0,0.00031011,2]
[322254853,1712915446944,-198.66672047,0.00031032,7]
[322254854,1712915446955,-157.18906211,0.0003106,7]
[322254855,1712915446965,-156.33363119,0.00031102,7]
[322254856,1712915446975,-153.3423266,0.0003113,7]
[322254857,1712915446986,-158.58774654,0.00031162,7]
[322254858,1712915446996,-163.21773918,0.00031164,7]
[322254859,1712915447006,-500.0,0.00031191,2]
[322254860,1712915447017,-500.0,0.00031191,2]
[322254861,1712915447028,-212.37790157,0.00031191,2]
[322254862,1712915447039,-557.6,0.00031191,2]
[322254863,1712915447049,-718.07,0.00031191,2]
[322254864,1712915447062,-530.24,0.00031191,2]
[322254865,1712915447073,-732.3,0.00031191,2]
[322254866,1712915447086,-500.0,0.00031191,2]
[322254867,1712915447097,-677.35,0.00031191,2]
[322254868,1712915447107,-500.0,0.00031191,2]
[322254869,1712915447118,-611.34,0.00031191,2]
[322254870,1712915447128,-500.0,0.00031191,2]
[322254871,1712915447139,-497.60761771,0.00031191,2]
[322254872,1712915447150,-2113.65,0.00031191,2]
[322254873,1712915447160,-564.32,0.00031191,2]
[322254874,1712915447170,-500.0,0.00031191,2]
[322254875,1712915447181,-500.0,0.00031191,2]
[322254876,1712915447192,-500.0,0.00031191,2]
[322254877,1712915447203,-500.0,0.00031191,2]
[322254878,1712915447213,-3469.98,0.00031191,2]
[322254879,1712915447224,-581.26,0.00031191,2]
[322254880,1712915447234,-635.14,0.00031191,2]
[322254881,1712915447245,-500.0,0.00031191,2]
[322254882,1712915447256,-858.19,0.00031191,2]
[322254883,1712915447267,-1691.0,0.00031191,2]
[322254884,1712915447277,-500.0,0.00031191,2]
[322254885,1712915447288,-500.0,0.00031191,2]
[322254886,1712915447299,-500.0,0.00031191,2]
[322254887,1712915447314,-887.98,0.00031191,2]
[322254888,1712915447325,-1416.67,0.00031191,2]
[322254889,1712915447335,-500.0,0.00031191,2]
[322254890,1712915447347,-154.02523859,0.00031225,7]
[322254891,1712915447359,-415.74156277,0.00031253,2]
[322254892,1712915447369,-153.88972213,0.0003127,7]
[322254893,1712915447381,-495.39065139,0.00031285,2]
[322254894,1712915447393,-500.0,0.00031285,2]
[322254895,1712915447404,-500.0,0.00031285,2]
[322254896,1712915447415,-167.32115961,0.00031299,7]
[322254897,1712915447425,-153.3423266,0.00031308,7]
[322254898,1712915447436,-150.0,0.0003131,2]
[322254899,1712915447447,-3073.70048006,0.00031321,2]
[322254900,1712915447458,-205.556456,0.00031336,7]
[322254901,1712915447470,-7278.08536358,0.00031347,2]
[322254902,1712915447480,-574.9,0.00031361,2]
[322254903,1712915447492,-151.66253266,0.00031402,7]
[322254904,1712915447503,-1027.73773914,0.00031444,2]
[322254905,1712915447514,-2913.26825246,0.00031444,2]
[322254906,1712915447525,-500.0,0.00031465,2]
[322254907,1712915447535,-500.0,0.00031465,2]
[322254908,1712915447546,-557.6,0.00031465,2]
[322254909,1712915447556,-718.07,0.00031465,2]
[322254910,1712915447567,-530.24,0.00031465,2]
[322254911,1712915447578,-732.3,0.00031465,2]
[322254912,1712915447589,-500.0,0.00031465,2]
[322254913,1712915447599,-677.35,0.00031465,2]
[322254914,1712915447610,-500.0,0.00031465,2]
[322254915,1712915447621,-611.34,0.00031465,2]
[322254916,1712915447632,-500.0,0.00031465,2]
[322254917,1712915447642,-2113.65,0.00031465,2]
[322254918,1712915447653,-564.32,0.00031465,2]
[322254919,1712915447664,-500.0,0.00031465,2]
[322254920,1712915447674,-500.0,0.00031465,2]
[322254921,1712915447685,-500.0,0.00031465,2]
[322254922,1712915447695,-188.86068366,0.00031465,2]
[322254923,1712915447704,-3469.98,0.00031465,2]
[322254924,1712915447714,-581.26,0.00031465,2]
[322254925,1712915447724,-635.14,0.00031465,2]
[322254926,1712915447734,-500.0,0.00031465,2]
[322254927,1712915447745,-858.19,0.00031465,2]
[322254928,1712915447755,-1691.0,0.00031465,2]
[322254929,1712915447765,-500.0,0.00031465,2]
[322254930,1712915447775,-500.0,0.00031465,2]
[322254931,1712915447785,-500.0,0.00031465,2]
[322254932,1712915447795,-887.98,0.00031465,2]
[322254933,1712915447805,-1416.67,0.00031465,2]
[322254934,1712915447816,-462.87118024,0.00031465,2]
[322254935,1712915447826,-150.95912377,0.00031468,7]
[322254936,1712915447837,-536.0,0.0003148,2]
[322254937,1712915447848,-886.0,0.0003148,2]
[322254938,1712915447859,-150.0,0.000315,3]
[322254939,1712915447869,-167.32115961,0.00031504,7]
[322254940,1712915447879,-200.814477,0.00031507,14]
[322254941,1712915447890,-154.02523859,0.00031532,7]
[322254942,1712915447900,-163.4681833,0.00031537,7]
[322254943,1712915447910,-415.74156277,0.00031547,2]
[322254944,1712915447920,-216.6304945,0.00031559,2]
[322254945,1712915447930,-164.43249588,0.00031559,2]
[322254946,1712915447942,-153.3423266,0.00031604,7]
[322254947,1712915447952,-3073.70048006,0.00031725,2]
[322254948,1712915447962,-500.0,0.00031739,2]
[322254949,1712915447973,-500.0,0.00031739,2]
[322254950,1712915447984,-557.6,0.00031739,2]
[322254951,1712915447994,-718.07,0.00031739,2]
[322254952,1712915448005,-530.24,0.00031739,2]
[322254953,1712915448015,-732.3,0.00031739,2]
[322254954,1712915448026,-500.0,0.00031739,2]
[322254955,1712915448037,-677.35,0.00031739,2]
[322254956,1712915448047,-500.0,0.00031739,2]
[322254957,1712915448059,-611.34,0.00031739,2]
[322254958,1712915448068,-561.28908123,0.00031739,2]
[322254959,1712915448078,-2113.65,0.00031739,2]
[322254960,1712915448089,-564.32,0.00031739,2]
[322254961,1712915448098,-246.39200023,0.00031739,2]
[322254962,1712915448108,-500.0,0.00031739,2]
[322254963,1712915448118,-500.0,0.00031739,2]
[322254964,1712915448129,-3469.98,0.00031739,2]
[322254965,1712915448387,-581.26,0.00031739,2]
[322254966,1712915448398,-635.14,0.00031739,2]
[322254967,1712915448409,-500.0,0.00031739,2]
[322254968,1712915448419,-858.19,0.00031739,2]
[322254969,1712915448429,-1691.0,0.00031739,2]
[322254970,1712915448439,-408.98442978,0.00031739,2]
[322254971,1712915448448,-230.69275513,0.00031739,2]
[322254972,1712915448458,-500.0,0.00031739,2]
[322254973,1712915448467,-887.98,0.00031739,2]
[322254974,1712915448476,-1416.67,0.00031739,2]
[322254975,1712915448486,-167.32115961,0.00031748,7]
[322254976,1712915448495,-152.32027782,0.00031757,7]
[322254977,1712915448505,-154.02523859,0.00031769,7]
[322254978,1712915448514,-180.68788228,0.00031797,4]
[322254979,1712915448524,-1241.19748567,0.00031797,4]
[322254980,1712915448533,-329.87253319,0.00031797,4]
[322254981,1712915448543,-597.96032771,0.00031797,4]
[322254982,1712915448552,-704.64333317,0.00031798,4]
[322254983,1712915448561,-3073.70048006,0.0003183,2]
[322254984,1712915448570,-415.74156277,0.00031842,2]
[322254985,1712915448580,-339.14031294,0.00031883,2]
[322254986,1712915448589,-158.0,0.000319,2]
[322254987,1712915448598,-151.84,0.000319,4]
[322254988,1712915448607,-200.0,0.00031906,2]
[322254989,1712915448616,-800.0,0.00031906,10]
[322254990,1712915448625,-500.0,0.00031906,2]
[322254991,1712915448635,-339.14031294,0.00031908,2]
[322254992,1712915448644,-339.14031294,0.0003192,2]
[322254993,1712915448654,-339.14031294,0.00031942,2]
[322254994,1712915448664,-339.14031294,0.00031947,2]
[322254995,1712915448674,-339.14031294,0.00031951,2]
[322254996,1712915448683,-176.72482462,0.00031966,7]
[322254997,1712915448692,-339.14031294,0.00031986,2]
[322254998,1712915448701,-339.14031294,0.00031992,2]
[322254999,1712915448710,-339.14031294,0.00031994,2]
[322255000,1712915448719,-486.03849486,0.00031998,4]
[322255001,1712915448729,-1969.2080462,0.00031998,4]
[322255002,1712915448738,-263.09163061,0.00031998,4]
[322255003,1712915448747,-300.0,0.00031999,2]
[322255004,1712915448757,-300.0,0.00031999,2]
[322255005,1712915448766,-300.0,0.00031999,2]
[322255006,1712915448775,-300.0,0.00031999,2]
[322255007,1712915448784,-300.0,0.00031999,2]
[322255008,1712915448793,-300.0,0.00031999,2]
[322255009,1712915448803,-355.62000604,0.00031999,2]
[322255010,1712915448812,-580.0,0.00032,2]
[322255011,1712915448821,-155.09007994,0.00032,4]
[322255012,1712915448830,-10099.83956206,0.00032,2]
[322255013,1712915448839,-10000.000001,0.00032,2]
[322255014,1712915448849,-2073.7628356,0.00032,2]
[322255015,1712915448859,-150.0,0.00032,3]
[322255016,1712915448868,-500.0,0.00032013,2]
[322255017,1712915448877,-500.0,0.00032013,2]
[322255018,1712915448886,-557.6,0.00032013,2]
[322255019,1712915448896,-718.07,0.00032013,2]
[322255020,1712915448906,-530.24,0.00032013,2]
[322255021,1712915448915,-732.3,0.00032013,2]
[322255022,1712915448925,-500.0,0.00032013,2]
[322255023,1712915448935,-677.35,0.00032013,2]
[322255024,1712915448946,-497.1494875,0.00032013,2]
[322255025,1712915448957,-611.34,0.00032013,2]
[322255026,1712915448967,-2113.65,0.00032013,2]
[322255027,1712915448977,-564.32,0.00032013,2]
[322255028,1712915448986,-500.0,0.00032013,2]
[322255029,1712915448996,-500.0,0.00032013,2]
[322255030,1712915449005,-3469.98,0.00032013,2]
[322255031,1712915449015,-581.26,0.00032013,2]
[322255032,1712915449025,-635.14,0.00032013,2]
[322255033,1712915449034,-271.9531646,0.00032013,2]
[322255034,1712915449044,-858.19,0.00032013,2]
[322255035,1712915449054,-1691.0,0.00032013,2]
[322255036,1712915449063,-500.0,0.00032013,2]
[322255037,1712915449073,-887.98,0.00032013,2]
[322255038,1712915449082,-1416.67,0.00032013,2]
[322255039,1712915449092,-176.72482462,0.00032019,7]
[322255040,1712915449101,-770.04,0.0003204,2]
[322255041,1712915449110,-335.0,0.00032063,5]
[322255042,1712915449120,-168.8816447,0.00032073,7]
[322255043,1712915449131,-167.32115961,0.00032075,7]
[322255044,1712915449140,-166.66666668,0.00032099,7]
[322255045,1712915449150,-14299.31190807,0.00032105,2]
[322255046,1712915449159,-4776.25084633,0.00032106,4]
[322255047,1712915449169,-1286.0465659,0.00032113,2]
[322255048,1712915449179,-3073.70048006,0.0003212,2]
[322255049,1712915449192,-415.74156277,0.00032136,2]
[322255050,1712915449202,-176.72482462,0.0003215,7]
[322255051,1712915449212,-1683.27363,0.0003218,2]
[322255052,1712915449222,-151.66253266,0.00032186,7]
[322255053,1712915449231,-167.32115961,0.00032186,7]
[322255054,1712915449241,-167.32115961,0.00032217,7]
[322255055,1712915449250,-1162.29,0.00032221,2]
[322255056,1712915449260,-153.3423266,0.00032261,7]
[322255057,1712915449270,-500.0,0.00032287,2]
[322255058,1712915449280,-500.0,0.00032287,2]
[322255059,1712915449289,-557.6,0.00032287,2]
[322255060,1712915449299,-718.07,0.00032287,2]
[322255061,1712915449309,-530.24,0.00032287,2]
[322255062,1712915449322,-732.3,0.00032287,2]
[322255063,1712915449331,-500.0,0.00032287,2]
[322255064,1712915449341,-677.35,0.00032287,2]
[322255065,1712915449351,-611.34,0.00032287,2]
[322255066,1712915449361,-2113.65,0.00032287,2]
[322255067,1712915449370,-564.32,0.00032287,2]
[322255068,1712915449380,-500.0,0.00032287,2]
[322255069,1712915449390,-500.0,0.00032287,2]
[322255070,1712915449399,-3469.98,0.00032287,2]
[322255071,1712915449408,-581.26,0.00032287,2]
[322255072,1712915449418,-635.14,0.00032287,2]
[322255073,1712915449427,-858.19,0.00032287,2]
[322255074,1712915449436,-1691.0,0.00032287,2]
[322255075,1712915449445,-500.0,0.00032287,2]
[322255076,1712915449455,-887.98,0.00032287,2]
[322255077,1712915449464,-1416.67,0.00032287,2]
[322255078,1712915449473,-200.814477,0.00032329,14]
[322255079,1712915449484,-151.66253266,0.00032344,7]
[322255080,1712915449493,-1000.0,0.00032347,2]
[322255081,1712915449502,-1000.0,0.00032347,2]
[322255082,1712915449511,-1000.0,0.00032347,2]
[322255083,1712915449521,-1000.0,0.00032347,2]
[322255084,1712915449530,-1000.0,0.00032347,2]
[322255085,1712915449540,-1000.0,0.00032347,2]
[322255086,1712915449549,-1000.0,0.00032347,2]
[322255087,1712915449559,-1000.0,0.00032347,2]
[322255088,1712915449568,-1000.0,0.00032347,2]
[322255089,1712915449577,-1000.0,0.00032347,2]
[322255090,1712915449586,-1000.0,0.00032347,2]
[322255091,1712915449595,-1000.0,0.00032347,2]
[322255092,1712915449605,-1000.0,0.00032347,2]
[322255093,1712915449614,-1000.0,0.00032347,2]
[322255094,1712915449624,-248.3041,0.00032347,2]
[322255095,1712915449633,-151.66253266,0.00032364,7]
[322255096,1712915449643,-6741.814717,0.000324,2]
[322255097,1712915449652,-158.37092536,0.00032403,2]
[322255098,1712915449661,-180.00658197,0.0003241,4]
[322255099,1712915449671,-4710.80933978,0.0003241,4]
[322255100,1712915449680,-415.74156277,0.0003243,2]
[322255101,1712915449690,-176.72482462,0.00032466,7]
[322255102,1712915449699,-198.66672047,0.00032473,7]
[322255103,1712915449709,-167.32115961,0.00032485,7]
[322255104,1712915449719,-154.02523859,0.00032497,7]
[322255105,1712915449729,-394.0,0.000325,5]
[322255106,1712915449738,-150.0,0.000325,5]
[322255107,1712915449748,-560.7753837,0.000325,4]
[322255108,1712915449757,-1011.0,0.000325,7]
[322255109,1712915449767,-393.756024,0.000325,5]
[322255110,1712915449777,-150.0,0.000325,3]
[322255111,1712915449786,-230.68118798,0.00032508,4]
[322255112,1712915449795,-2175.08703921,0.00032508,4]
[322255113,1712915449804,-189.98655532,0.00032508,4]
[322255114,1712915449814,-178.30133083,0.00032509,2]
[322255115,1712915449824,-3890.08440079,0.00032509,2]
[322255116,1712915449835,-34528.97320995,0.0003251,2]
[322255117,1712915449844,-681.14415937,0.0003251,2]
[322255118,1712915449853,-1603.32385558,0.0003251,4]
[322255119,1712915449863,-695.1051136,0.00032513,2]
[322255120,1712915449872,-826.23232907,0.00032513,2]
[322255121,1712915449881,-906.1859844,0.00032513,2]
[322255122,1712915449891,-317.998242,0.00032513,2]
[322255123,1712915449900,-9961.2408583,0.00032517,2]
[322255124,1712915449910,-64024.6732305,0.00032517,2]
[322255125,1712915449920,-167.32115961,0.00032535,7]
[322255126,1712915449929,-153.3423266,0.0003254,7]
[322255127,1712915449940,-157.43248173,0.00032558,7]
[322255128,1712915449949,-500.0,0.00032561,2]
[322255129,1712915449959,-500.0,0.00032561,2]
[322255130,1712915449968,-557.6,0.00032561,2]
[322255131,1712915449978,-718.07,0.00032561,2]
[322255132,1712915449987,-530.24,0.00032561,2]
[322255133,1712915449996,-732.3,0.00032561,2]
[322255134,1712915450006,-500.0,0.00032561,2]
[322255135,1712915450015,-677.35,0.00032561,2]
[322255136,1712915450025,-611.34,0.00032561,2]
[322255137,1712915450034,-2113.65,0.00032561,2]
[322255138,1712915450043,-564.32,0.00032561,2]
[322255139,1712915450053,-500.0,0.00032561,2]
[322255140,1712915450062,-500.0,0.00032561,2]
[322255141,1712915450071,-3469.98,0.00032561,2]
[322255142,1712915450081,-581.26,0.00032561,2]
[322255143,1712915450091,-635.14,0.00032561,2]
[322255144,1712915450100,-858.19,0.00032561,2]
[322255145,1712915450110,-1691.0,0.00032561,2]
[322255146,1712915450119,-500.0,0.00032561,2]
[322255147,1712915450129,-887.98,0.00032561,2]
[322255148,1712915450142,-1416.67,0.00032561,2]
[322255149,1712915450152,-456.80078622,0.000326,20]
[322255150,1712915450162,-103253.55889625,0.000326,2]
[322255151,1712915450361,-7283.41528843,0.000326,2]
[322255152,1712915450373,-39463.02581532,0.000326,2]
[322255153,1712915450383,-14787.5305036,0.000326,2]
[322255154,1712915450410,-500.0,0.00028999,2]
[322255155,1712915450419,-6379.03779866,0.000326,2]
[322255156,1712915450431,-562.48046927,0.000326,2]
[322255157,1712915450445,-5208.96426022,0.000326,2]
[322255158,1712915450457,-123275.90640363,0.000326,2]
[322255159,1712915450467,-7208.26,0.00032603,2]
[322255160,1712915450477,-415.74156277,0.00032724,2]
[322255161,1712915450487,-176.72482462,0.0003274,7]
[322255162,1712915450497,-151.66253266,0.00032824,7]
[322255163,1712915450507,-3073.70048006,0.00032826,2]
[322255164,1712915450516,-500.0,0.00032835,2]
[322255165,1712915450526,-240.68532764,0.00032835,2]
[322255166,1712915450536,-557.6,0.00032835,2]
[322255167,1712915450546,-718.07,0.00032835,2]
[322255168,1712915450572,-530.24,0.00032835,2]
[322255169,1712915450584,-732.3,0.00032835,2]
[322255170,1712915450594,-500.0,0.00032835,2]
[322255171,1712915450603,-677.35,0.00032835,2]
[322255172,1712915450613,-611.34,0.00032835,2]
[322255173,1712915450623,-2113.65,0.00032835,2]
[322255174,1712915450633,-564.32,0.00032835,2]
[322255175,1712915450643,-500.0,0.00032835,2]
[322255176,1712915450654,-346.81623938,0.00032835,2]
[322255177,1712915450667,-3469.98,0.00032835,2]
[322255178,1712915450677,-581.26,0.00032835,2]
[322255179,1712915450689,-635.14,0.00032835,2]
[322255180,1712915450699,-858.19,0.00032835,2]
[322255181,1712915450709,-1691.0,0.00032835,2]
[322255182,1712915450719,-500.0,0.00032835,2]
[322255183,1712915450729,-887.98,0.00032835,2]
[322255184,1712915450740,-1416.67,0.00032835,2]
[322255185,1712915450750,-536.0,0.00032849,2]
[322255186,1712915450759,-886.0,0.00032849,2]
[322255187,1712915450769,-150.0,0.00032858,2]
[322255188,1712915450778,-150.0,0.0003286,2]
[322255189,1712915450788,-1286.046566,0.00032867,2]
[322255190,1712915450798,-1541.25837116,0.00032876,2]
[322255191,1712915450808,-525.48352552,0.00032876,2]
[322255192,1712915450818,-5545.06157159,0.00032876,2]
[322255193,1712915450827,-500.0,0.00032876,2]
[322255194,1712915450837,-500.0,0.00032876,2]
[322255195,1712915450846,-500.0,0.00032876,2]
[322255196,1712915450856,-500.0,0.00032876,2]
[322255197,1712915450865,-500.0,0.00032876,2]
[322255198,1712915450875,-500.0,0.00032876,2]
[322255199,1712915450885,-500.0,0.00032876,2]
[322255200,1712915450894,-500.0,0.00032876,2]
[322255201,1712915450904,-500.0,0.00032876,2]
[322255202,1712915450913,-500.0,0.00032876,2]
[322255203,1712915450923,-500.0,0.00032876,2]
[322255204,1712915450933,-558.95544735,0.00032876,2]
[322255205,1712915450944,-179.77,0.00032877,2]
[322255206,1712915450954,-153.76,0.00032877,2]
[322255207,1712915450964,-150.0,0.00032894,2]
[322255208,1712915450974,-174.12907946,0.000329,4]
[322255209,1712915450983,-150.0,0.00032922,2]
[322255210,1712915450993,-170.0,0.0003294,18]
[322255211,1712915451002,-150.0,0.0003297,2]
[322255212,1712915451012,-334.42836385,0.0003299,2]
[322255213,1712915451021,-100000.0,0.00033,23]
[322255214,1712915451031,-176.77810199,0.00033,2]
[322255215,1712915451040,-15030.46225202,0.00033,2]
[322255216,1712915451050,-15185.21220389,0.00033,2]
[322255217,1712915451067,-3606.15,0.00033,2]
[322255218,1712915451080,-9257.40000601,0.00033,2]
[322255219,1712915451092,-8643.67207993,0.00033,2]
[322255220,1712915451104,-1585.6106115,0.00033,2]
[322255221,1712915451188,-50490.68978635,0.00033,2]
[322255222,1712915451203,-143758.00000001,0.00033,2]
[322255223,1712915451224,-3611.8092,0.00033,2]
[322255224,1712915451237,-436.67458731,0.00033,2]
[322255225,1712915451250,-1836.10548636,0.00033,2]
[322255226,1712915451262,-6368.62701217,0.00033,2]
[322255227,1712915451274,-5220.04902647,0.00033,2]
[322255228,1712915451284,-2842.40536341,0.00033,4]
[322255229,1712915451296,-2081.34437784,0.00033,4]
[322255230,1712915451308,-2897.80900146,0.00033,4]
[322255231,1712915451323,-2178.44125729,0.00033,4]
[322255232,1712915451333,-150.0,0.00033001,2]
[322255233,1712915451343,-176.72482462,0.00033005,7]
[322255234,1712915451354,-150.0,0.00033009,2]
[322255235,1712915451364,-415.74156277,0.00033019,2]
[322255236,1712915451374,-150.0,0.00033028,2]
[322255237,1712915451384,-198.66672047,0.00033049,7]
[322255238,1712915451396,-198.66672047,0.00033057,7]
[322255239,1712915451406,-3073.70048009,0.00033057,2]
[322255240,1712915451416,-150.0,0.00033091,2]
[322255241,1712915451426,-155.07293386,0.00033109,7]
[322255242,1712915451436,-718.07,0.00033109,7]
[322255243,1712915451615,-530.24,0.00033109,7]
[322255244,1712915451626,-732.3,0.00033109,7]
[322255245,1712915451636,-500.0,0.00033109,7]
[322255246,1712915451646,-677.35,0.00033109,7]
[322255247,1712915451656,-611.34,0.00033109,7]
[322255248,1712915451666,-2113.65,0.00033109,7]
[322255249,1712915451676,-564.32,0.00033109,7]
[322255250,1712915451686,-500.0,0.00033109,7]
[322255251,1712915451697,-3469.98,0.00033109,7]
[322255252,1712915451707,-581.26,0.00033109,7]
[322255253,1712915451717,-635.14,0.00033109,7]
[322255254,1712915451727,-858.19,0.00033109,7]
[322255255,1712915451737,-1691.0,0.00033109,7]
[322255256,1712915451747,-500.0,0.00033109,7]
[322255257,1712915451757,-887.98,0.00033109,7]
[322255258,1712915451767,-1416.67,0.00033109,7]
[322255259,1712915451777,-150.0,0.00033136,2]
[322255260,1712915451787,-150.0,0.00033142,2]
[322255261,1712915451797,-200.814477,0.00033151,14]
[322255262,1712915451806,-150.0,0.00033159,2]
[322255263,1712915451816,-150.0,0.00033165,2]
[322255264,1712915451826,-447.48,0.00033165,2]
[322255265,1712915451835,-198.66672047,0.00033171,7]
[322255266,1712915451845,-150.0,0.00033187,2]
[322255267,1712915451854,-150.0,0.00033204,2]
[322255268,1712915451863,-150.0,0.00033215,2]
[322255269,1712915451873,-153.3423266,0.00033228,7]
[322255270,1712915451888,-150.0,0.00033246,2]
[322255271,1712915451897,-150.0,0.0003327,2]
[322255272,1712915451907,-167.32115961,0.00033276,7]
[322255273,1712915451916,-152.82,0.000333,2]
[322255274,1712915451925,-152.82,0.000333,2]
[322255275,1712915451934,-152.82,0.000333,2]
[322255276,1712915451945,-152.82,0.000333,2]
[322255277,1712915451954,-152.82,0.000333,2]
[322255278,1712915451963,-152.82,0.000333,2]
[322255279,1712915451973,-152.82,0.000333,2]
[322255280,1712915451983,-152.82,0.000333,2]
[322255281,1712915451993,-152.82,0.000333,2]
[322255282,1712915452003,-415.74156277,0.00033313,2]
[322255283,1712915452012,-153.3423266,0.00033316,7]
[322255284,1712915452022,-150.0,0.0003336,2]
[322255285,1712915452032,-150.0,0.0003337,2]
[322255286,1712915452042,-718.07,0.00033383,7]
[322255287,1712915452051,-530.24,0.00033383,7]
[322255288,1712915452061,-732.3,0.00033383,7]
[322255289,1712915452070,-532.01130453,0.00033383,7]
[322255290,1712915452080,-677.35,0.00033383,7]
[322255291,1712915452089,-611.34,0.00033383,7]
[322255292,1712915452099,-2113.65,0.00033383,7]
[322255293,1712915452109,-564.32,0.00033383,7]
[322255294,1712915452118,-500.0,0.00033383,7]